[Event "Live Chess"]
[Site "Chess.com"]
[Date "2023.09.16"]
[Round "-"]
[White "ABC2009V"]
[Black "ravypintodiniz"]
[Result "0-1"]
[WhiteElo "2003"]
[BlackElo "2048"]
[TimeControl "900+5"]
[EndTime "7:27:51 PDT"]
[Termination "ravypintodiniz venceu por xeque-mate"]

1. e4 {[%clk 0:15:04.6]} 1... c5 {[%clk 0:15:02.4]} 2. Nf3 {[%clk 0:15:08.4]}
2... d6 {[%clk 0:15:06.6]} 3. d4 {[%clk 0:15:10.3]} 3... cxd4 {[%clk 0:15:11.5]}
4. Nxd4 {[%clk 0:15:14.2]} 4... Nf6 {[%clk 0:15:15.4]} 5. Nc3 {[%clk 0:15:17.8]}
5... a6 {[%clk 0:15:19.7]} 6. Bc4 {[%clk 0:15:21.3]} 6... e6 {[%clk 0:15:24.1]}
7. Bb3 {[%clk 0:15:24.6]} 7... Be7 {[%clk 0:15:28.3]} 8. O-O {[%clk 0:15:20.4]}
8... O-O {[%clk 0:15:30.7]} 9. Kh1 {[%clk 0:14:58.9]} 9... b5 {[%clk 0:15:30.8]}
10. f4 {[%clk 0:14:22.7]} 10... b4 {[%clk 0:15:28]} 11. Nce2 {[%clk 0:14:21.9]}
11... Nxe4 {[%clk 0:15:32]} 12. f5 {[%clk 0:14:07.3]} 12... d5 {[%clk
0:15:19.6]} 13. fxe6 {[%clk 0:13:55.1]} 13... fxe6 {[%clk 0:15:24.5]} 14. Nf4
{[%clk 0:13:27.8]} 14... Nc5 {[%clk 0:14:38.9]} 15. Nf3 {[%clk 0:10:48.3]} 15...
Nxb3 {[%clk 0:14:21.8]} 16. axb3 {[%clk 0:10:41.3]} 16... Bd6 {[%clk 0:14:19.1]}
17. Nxd5 {[%clk 0:10:11.8]} 17... Bxh2 {[%clk 0:14:09.5]} 18. Nxb4 {[%clk
0:09:41.7]} 18... Bd6 {[%clk 0:13:54.5]} 19. Nd5 {[%clk 0:09:09.8]} 19... Bb7
{[%clk 0:13:51.8]} 20. Bg5 {[%clk 0:08:31.2]} 20... Qe8 {[%clk 0:13:44.5]} 21.
Nb6 {[%clk 0:08:02.4]} 21... Qh5+ {[%clk 0:13:37.4]} 22. Bh4 {[%clk 0:07:29.7]}
22... Rxf3 {[%clk 0:13:25.1]} 23. Rxf3 {[%clk 0:06:55.6]} 23... Qxh4+ {[%clk
0:13:27]} 24. Kg1 {[%clk 0:06:47.7]} 24... Bc5+ {[%clk 0:13:28]} 25. Kf1 {[%clk
0:06:34.2]} 25... Qh1+ {[%clk 0:13:24.2]} 26. Ke2 {[%clk 0:06:31.5]} 26... Qxg2+
{[%clk 0:13:27.7]} 27. Kd3 {[%clk 0:06:32.1]} 27... Bxf3 {[%clk 0:13:14.6]} 28.
Qe1 {[%clk 0:06:30.1]} 28... Qg6+ {[%clk 0:13:14.2]} 29. Kd2 {[%clk 0:06:31.5]}
29... Qg5+ {[%clk 0:13:08.5]} 30. Kc3 {[%clk 0:06:31.3]} 30... Qf6+ {[%clk
0:13:01.7]} 31. Kc4 {[%clk 0:06:25.6]} 31... Qd4# {[%clk 0:13:04.6]} 0-1

[Event "Live Chess"]
[Site "Chess.com"]
[Date "2023.09.16"]
[Round "-"]
[White "lucasportolelis"]
[Black "Riquelme_Leonardo"]
[Result "1-0"]
[WhiteElo "1690"]
[BlackElo "1677"]
[TimeControl "900+5"]
[EndTime "7:27:53 PDT"]
[Termination "lucasportolelis venceu por desistência"]

1. e4 {[%clk 0:15:04.1]} 1... e5 {[%clk 0:15:03.7]} 2. Nf3 {[%clk 0:15:08.1]}
2... Nc6 {[%clk 0:15:07.6]} 3. Bc4 {[%clk 0:15:11.8]} 3... Nf6 {[%clk
0:15:11.8]} 4. Ng5 {[%clk 0:15:13.5]} 4... d5 {[%clk 0:15:12.3]} 5. exd5 {[%clk
0:15:17.1]} 5... Nd4 {[%clk 0:15:13.8]} 6. c3 {[%clk 0:15:02.5]} 6... Nf5 {[%clk
0:15:10.2]} 7. Qe2 {[%clk 0:14:30.1]} 7... Bd6 {[%clk 0:15:06.7]} 8. O-O {[%clk
0:14:22.1]} 8... O-O {[%clk 0:15:08.6]} 9. d4 {[%clk 0:14:14.4]} 9... exd4
{[%clk 0:15:08.7]} 10. Qf3 {[%clk 0:13:55.3]} 10... dxc3 {[%clk 0:15:09.3]} 11.
Nxc3 {[%clk 0:13:57.4]} 11... Nd4 {[%clk 0:15:13.5]} 12. Qd3 {[%clk 0:13:51.7]}
12... Nf5 {[%clk 0:15:02.8]} 13. Re1 {[%clk 0:13:33.4]} 13... Bd7 {[%clk
0:14:55.3]} 14. Nce4 {[%clk 0:13:15.7]} 14... Nxe4 {[%clk 0:14:57.2]} 15. Qxe4
{[%clk 0:13:17.7]} 15... Re8 {[%clk 0:14:55.4]} 16. Ne6 {[%clk 0:13:09.1]} 16...
fxe6 {[%clk 0:14:45.6]} 17. dxe6 {[%clk 0:13:12]} 17... Bxh2+ {[%clk 0:14:01.1]}
18. Kxh2 {[%clk 0:13:00.2]} 18... Qh4+ {[%clk 0:13:55.4]} 19. Qxh4 {[%clk
0:13:03.7]} 19... Nxh4 {[%clk 0:13:59.1]} 20. exd7+ {[%clk 0:13:07.1]} 1-0

[Event "Live Chess"]
[Site "Chess.com"]
[Date "2023.09.16"]
[Round "-"]
[White "brenin12345"]
[Black "xadrecarloso"]
[Result "1-0"]
[WhiteElo "768"]
[BlackElo "936"]
[TimeControl "900+5"]
[EndTime "7:29:04 PDT"]
[Termination "brenin12345 venceu por desistência"]

1. e4 {[%clk 0:15:01.8]} 1... c5 {[%clk 0:15:03.3]} 2. Nf3 {[%clk 0:15:05.1]}
2... a6 {[%clk 0:15:07.6]} 3. d4 {[%clk 0:15:08.3]} 3... d6 {[%clk 0:15:09.5]}
4. d5 {[%clk 0:15:07.9]} 4... b5 {[%clk 0:15:12.9]} 5. c4 {[%clk 0:15:02.2]}
5... Nf6 {[%clk 0:15:09]} 6. Nbd2 {[%clk 0:14:28.2]} 6... bxc4 {[%clk
0:15:02.7]} 7. Bxc4 {[%clk 0:14:26.2]} 7... Bg4 {[%clk 0:14:28.6]} 8. O-O {[%clk
0:13:59.8]} 8... Bxf3 {[%clk 0:14:20]} 9. Qxf3 {[%clk 0:13:42]} 9... Nbd7 {[%clk
0:14:13.9]} 10. Qa3 {[%clk 0:13:21]} 10... a5 {[%clk 0:13:48.6]} 11. f3 {[%clk
0:12:25.5]} 11... Ne5 {[%clk 0:13:44.1]} 12. Bb5+ {[%clk 0:11:59]} 12... Nfd7
{[%clk 0:13:39.4]} 13. Nc4 {[%clk 0:11:38.9]} 13... Nxc4 {[%clk 0:13:26]} 14.
Bxc4 {[%clk 0:11:16.2]} 14... g6 {[%clk 0:13:28]} 15. Bd2 {[%clk 0:11:08.1]}
15... a4 {[%clk 0:13:26.5]} 16. Bb5 {[%clk 0:10:56.3]} 16... Qb6 {[%clk
0:13:27.4]} 17. Bxa4 {[%clk 0:10:23.9]} 17... c4+ {[%clk 0:13:26.6]} 18. Be3
{[%clk 0:09:53.2]} 18... Qxe3+ {[%clk 0:13:27.4]} 19. Qxe3 {[%clk 0:09:55.3]}
19... Rxa4 {[%clk 0:13:31.4]} 20. b3 {[%clk 0:09:42.5]} 20... cxb3 {[%clk
0:13:31]} 21. Qxb3 {[%clk 0:08:52]} 21... Rd4 {[%clk 0:13:02.3]} 22. Qb7 {[%clk
0:08:28.2]} 22... f6 {[%clk 0:12:37.7]} 23. Qc8+ {[%clk 0:08:27.3]} 23... Kf7
{[%clk 0:12:41.2]} 24. Qxd7 {[%clk 0:08:29.8]} 24... Bg7 {[%clk 0:12:44.3]} 25.
Qe6+ {[%clk 0:08:21.2]} 25... Ke8 {[%clk 0:12:46.4]} 26. Rfb1 {[%clk 0:08:22.8]}
26... Rd1+ {[%clk 0:12:17.4]} 27. Rxd1 {[%clk 0:08:25.1]} 27... f5 {[%clk
0:12:18.4]} 28. Rac1 {[%clk 0:08:26.4]} 28... Bd4+ {[%clk 0:11:56.8]} 1-0

[Event "Live Chess"]
[Site "Chess.com"]
[Date "2023.09.16"]
[Round "-"]
[White "Mozart5501"]
[Black "vitinho_lawliet"]
[Result "1-0"]
[WhiteElo "1784"]
[BlackElo "924"]
[TimeControl "900+5"]
[EndTime "7:29:48 PDT"]
[Termination "Mozart5501 venceu por xeque-mate"]

1. e4 {[%clk 0:15:03.8]} 1... e6 {[%clk 0:15:01.5]} 2. d4 {[%clk 0:15:07.3]}
2... d5 {[%clk 0:15:04.8]} 3. exd5 {[%clk 0:15:11.9]} 3... Qxd5 {[%clk
0:15:06.4]} 4. Nf3 {[%clk 0:15:16.5]} 4... Bb4+ {[%clk 0:15:06.4]} 5. c3 {[%clk
0:15:18.1]} 5... Bd6 {[%clk 0:15:08.4]} 6. Bd3 {[%clk 0:15:16.5]} 6... e5 {[%clk
0:15:05.4]} 7. dxe5 {[%clk 0:15:18.7]} 7... Bxe5 {[%clk 0:15:09]} 8. O-O {[%clk
0:15:20.7]} 8... Bxh2+ {[%clk 0:15:10.6]} 9. Kxh2 {[%clk 0:15:20.4]} 9... Qh5+
{[%clk 0:15:13.1]} 10. Kg1 {[%clk 0:15:23.7]} 10... Nf6 {[%clk 0:15:10.8]} 11.
Re1+ {[%clk 0:15:25.5]} 11... Be6 {[%clk 0:15:12.8]} 12. Bc4 {[%clk 0:15:22.9]}
12... Ng4 {[%clk 0:15:15.9]} 13. Bxe6 {[%clk 0:15:25.3]} 13... fxe6 {[%clk
0:15:17.2]} 14. Rxe6+ {[%clk 0:15:29.1]} 14... Kf7 {[%clk 0:15:15.8]} 15. Re4
{[%clk 0:15:13.5]} 15... Rf8 {[%clk 0:15:13.8]} 16. Rxg4 {[%clk 0:15:16.4]}
16... Qxg4 {[%clk 0:15:15.6]} 17. Ne5+ {[%clk 0:15:21]} 17... Kg8 {[%clk
0:15:09.3]} 18. Qxg4 {[%clk 0:15:23]} 18... Nc6 {[%clk 0:15:08.9]} 19. Qe6+
{[%clk 0:15:27.2]} 19... Kh8 {[%clk 0:15:10.7]} 20. Nf7+ {[%clk 0:15:30.6]}
20... Kg8 {[%clk 0:15:10.4]} 21. Nh6+ {[%clk 0:15:31.1]} 21... Kh8 {[%clk
0:15:14.1]} 22. Qg8+ {[%clk 0:15:34.6]} 22... Rxg8 {[%clk 0:15:16.6]} 23. Nf7#
{[%clk 0:15:39.2]} 1-0

[Event "Live Chess"]
[Site "Chess.com"]
[Date "2023.09.16"]
[Round "-"]
[White "Edson_Zarnelli"]
[Black "abaakate"]
[Result "0-1"]
[WhiteElo "785"]
[BlackElo "1916"]
[TimeControl "900+5"]
[EndTime "7:29:54 PDT"]
[Termination "abaakate venceu por xeque-mate"]

1. e4 {[%clk 0:15:04.2]} 1... c5 {[%clk 0:15:03]} 2. c3 {[%clk 0:15:06.1]} 2...
Nf6 {[%clk 0:15:04.9]} 3. e5 {[%clk 0:15:04.8]} 3... Nd5 {[%clk 0:15:07.2]} 4.
c4 {[%clk 0:14:51.8]} 4... Nb6 {[%clk 0:15:06.6]} 5. Bd3 {[%clk 0:14:42.2]} 5...
Nc6 {[%clk 0:15:08.7]} 6. Nf3 {[%clk 0:14:41.7]} 6... d6 {[%clk 0:15:06.9]} 7.
exd6 {[%clk 0:14:26.8]} 7... Qxd6 {[%clk 0:15:11.8]} 8. Be2 {[%clk 0:14:21.2]}
8... Bg4 {[%clk 0:15:12.5]} 9. Ng5 {[%clk 0:13:52.2]} 9... Bxe2 {[%clk
0:15:07.8]} 10. Qxe2 {[%clk 0:13:55.2]} 10... Nd4 {[%clk 0:15:12.1]} 11. Qe4
{[%clk 0:13:15.8]} 11... Nxc4 {[%clk 0:14:56.8]} 12. b3 {[%clk 0:13:05]} 12...
f5 {[%clk 0:14:58.2]} 13. Qxb7 {[%clk 0:13:02.4]} 13... Rb8 {[%clk 0:14:47.5]}
14. Qxa7 {[%clk 0:12:50.2]} 14... Qe5+ {[%clk 0:14:50.1]} 15. Kf1 {[%clk
0:12:43.2]} 15... Qe2+ {[%clk 0:14:52.9]} 16. Kg1 {[%clk 0:12:40.3]} 16... Qe1#
{[%clk 0:14:57.8]} 0-1

[Event "Live Chess"]
[Site "Chess.com"]
[Date "2023.09.16"]
[Round "-"]
[White "IanFLS"]
[Black "Torugomilho11"]
[Result "1-0"]
[WhiteElo "1875"]
[BlackElo "1123"]
[TimeControl "900+5"]
[EndTime "7:29:55 PDT"]
[Termination "IanFLS venceu por desistência"]

1. e4 {[%clk 0:14:59.9]} 1... c6 {[%clk 0:15:04.2]} 2. d4 {[%clk 0:15:01.8]}
2... d5 {[%clk 0:15:07.9]} 3. f3 {[%clk 0:15:03.3]} 3... e6 {[%clk 0:14:56.3]}
4. Nc3 {[%clk 0:15:06.6]} 4... Nf6 {[%clk 0:14:58.2]} 5. Bg5 {[%clk 0:15:09.6]}
5... Be7 {[%clk 0:15:01.5]} 6. Bd3 {[%clk 0:15:09]} 6... h6 {[%clk 0:14:59.1]}
7. Bh4 {[%clk 0:15:12.1]} 7... Nbd7 {[%clk 0:14:51]} 8. Nge2 {[%clk 0:15:15.3]}
8... Nb6 {[%clk 0:14:51.3]} 9. Qd2 {[%clk 0:14:59.9]} 9... Bd7 {[%clk
0:14:33.9]} 10. e5 {[%clk 0:15:03.4]} 10... Ng8 {[%clk 0:14:22.1]} 11. Bxe7
{[%clk 0:15:06.6]} 11... Nxe7 {[%clk 0:14:27]} 12. O-O-O {[%clk 0:14:53.7]}
12... O-O {[%clk 0:14:19.7]} 13. g4 {[%clk 0:14:55.9]} 13... a5 {[%clk
0:14:21.6]} 14. f4 {[%clk 0:14:58.8]} 14... Qc7 {[%clk 0:13:52.4]} 15. Rhg1
{[%clk 0:14:57.1]} 15... c5 {[%clk 0:13:20.3]} 16. f5 {[%clk 0:15:00.7]} 16...
c4 {[%clk 0:13:24]} 17. fxe6 {[%clk 0:14:59.2]} 17... fxe6 {[%clk 0:13:18.7]}
18. g5 {[%clk 0:15:01.5]} 18... cxd3 {[%clk 0:13:21.1]} 19. gxh6 {[%clk
0:15:02.6]} 19... Nf5 {[%clk 0:13:06.1]} 20. hxg7 {[%clk 0:15:00.6]} 20... Nxg7
{[%clk 0:13:09.5]} 21. Qg5 {[%clk 0:15:02]} 21... Bb5 {[%clk 0:12:53.7]} 22. Nf4
{[%clk 0:14:55.4]} 22... dxc2 {[%clk 0:12:54]} 23. Rde1 {[%clk 0:14:39.8]} 23...
Be8 {[%clk 0:12:05.8]} 24. Nxe6 {[%clk 0:14:42.1]} 1-0

[Event "Live Chess"]
[Site "Chess.com"]
[Date "2023.09.16"]
[Round "-"]
[White "z_anne_ari"]
[Black "daniel-drummond"]
[Result "1/2-1/2"]
[WhiteElo "1268"]
[BlackElo "1546"]
[TimeControl "900+5"]
[EndTime "7:30:11 PDT"]
[Termination "Partida empatada por acordo"]

1. d4 {[%clk 0:15:04.3]} 1... d5 {[%clk 0:15:00.9]} 2. c4 {[%clk 0:15:08.5]}
2... e6 {[%clk 0:15:02.6]} 3. Nc3 {[%clk 0:15:12.8]} 3... Nf6 {[%clk 0:15:05.4]}
4. Nf3 {[%clk 0:15:16.9]} 4... Be7 {[%clk 0:15:04.4]} 5. Bg5 {[%clk 0:15:20.8]}
5... O-O {[%clk 0:15:05.4]} 6. e3 {[%clk 0:15:24.7]} 6... h6 {[%clk 0:15:08.6]}
7. Bxf6 {[%clk 0:15:27.8]} 7... Bxf6 {[%clk 0:15:11.7]} 8. cxd5 {[%clk
0:15:32.4]} 8... exd5 {[%clk 0:15:10.4]} 9. Bd3 {[%clk 0:15:36]} 9... c6 {[%clk
0:15:12.3]} 10. O-O {[%clk 0:15:40.1]} 10... Bg4 {[%clk 0:15:07.9]} 11. Bc2
{[%clk 0:15:39.9]} 11... Nd7 {[%clk 0:15:02.2]} 12. Qd3 {[%clk 0:15:43.7]} 12...
g6 {[%clk 0:14:59.2]} 13. e4 {[%clk 0:15:37.7]} 13... dxe4 {[%clk 0:14:57.6]}
14. Nxe4 {[%clk 0:15:41.9]} 14... Bf5 {[%clk 0:14:54.6]} 15. Nxf6+ {[%clk
0:15:41.2]} 15... Qxf6 {[%clk 0:14:58.8]} 16. Qc3 {[%clk 0:15:43.8]} 16... Bxc2
{[%clk 0:14:55.2]} 17. Qxc2 {[%clk 0:15:43.6]} 17... Rac8 {[%clk 0:14:58.4]} 18.
Rae1 {[%clk 0:15:35.2]} 18... c5 {[%clk 0:14:58.5]} 19. Ne5 {[%clk 0:15:24.8]}
19... Nxe5 {[%clk 0:14:57.3]} 20. dxe5 {[%clk 0:15:27.6]} 20... Qg5 {[%clk
0:14:59.9]} 21. Qc4 {[%clk 0:15:19.5]} 21... Rfe8 {[%clk 0:15:00.9]} 22. e6
{[%clk 0:15:17.4]} 22... Qf5 {[%clk 0:14:44.4]} 23. exf7+ {[%clk 0:15:13.7]}
23... Qxf7 {[%clk 0:14:49.3]} 24. Rxe8+ {[%clk 0:15:13.2]} 24... Rxe8 {[%clk
0:14:51.1]} 25. Qxc5 {[%clk 0:15:15.3]} 25... b6 {[%clk 0:14:47.9]} 26. Qb5
{[%clk 0:15:00.4]} 26... Rf8 {[%clk 0:14:47.2]} 27. f4 {[%clk 0:15:00.2]} 27...
Qxa2 {[%clk 0:14:48.3]} 28. g3 {[%clk 0:14:52.7]} 28... Qa5 {[%clk 0:14:49.2]}
29. Qb3+ {[%clk 0:14:52.4]} 29... Kg7 {[%clk 0:14:49.4]} 30. g4 {[%clk
0:14:48.2]} 30... Qc5+ {[%clk 0:14:47.6]} 31. Kg2 {[%clk 0:14:51.7]} 31... Qc6+
{[%clk 0:14:42.2]} 32. Kg3 {[%clk 0:14:50.9]} 32... Qd6 {[%clk 0:14:34.4]} 33.
Qc3+ {[%clk 0:14:49.6]} 33... Kh7 {[%clk 0:14:32.8]} 34. h4 {[%clk 0:14:43.1]}
34... a5 {[%clk 0:14:09.3]} 35. g5 {[%clk 0:14:41.4]} 35... h5 {[%clk
0:14:09.3]} 36. Qe3 {[%clk 0:14:22.8]} 36... a4 {[%clk 0:13:52.6]} 37. Kg2
{[%clk 0:14:25.2]} 37... b5 {[%clk 0:13:52.4]} 38. f5 {[%clk 0:14:28.7]} 38...
gxf5 {[%clk 0:13:55]} 39. Qa7+ {[%clk 0:14:25.6]} 39... Kg6 {[%clk 0:13:51]} 40.
Qe3 {[%clk 0:13:31.2]} 40... Qd5+ {[%clk 0:13:27.6]} 41. Kg3 {[%clk 0:13:30]}
41... Qb3 {[%clk 0:13:23.2]} 42. Qxb3 {[%clk 0:13:32.3]} 42... axb3 {[%clk
0:13:28.1]} 43. Kf4 {[%clk 0:13:34.4]} 43... Rd8 {[%clk 0:13:28.3]} 44. Ke5
{[%clk 0:13:24.1]} 44... Rf8 {[%clk 0:13:25.3]} 45. Rd1 {[%clk 0:13:25.5]} 45...
Re8+ {[%clk 0:13:21.5]} 46. Kf4 {[%clk 0:13:19.1]} 46... Re4+ {[%clk 0:13:23.7]}
47. Kg3 {[%clk 0:13:23.5]} 47... Rg4+ {[%clk 0:13:25.3]} 48. Kh3 {[%clk
0:13:26.3]} 48... Kf7 {[%clk 0:13:20.7]} 49. Rd5 {[%clk 0:13:21]} 49... Ke6
{[%clk 0:13:16.5]} 50. Rxb5 {[%clk 0:13:24.4]} 50... Re4 {[%clk 0:12:56.3]} 51.
g6 {[%clk 0:13:24.6]} 51... Kf6 {[%clk 0:12:58.8]} 52. Rb6+ {[%clk 0:13:26.3]}
52... Kg7 {[%clk 0:13:02.3]} 53. Rxb3 {[%clk 0:13:20.9]} 53... Kxg6 {[%clk
0:13:00.3]} 54. Rb6+ {[%clk 0:13:23]} 54... Kf7 {[%clk 0:13:02.8]} 55. b4 {[%clk
0:13:23.9]} 55... f4 {[%clk 0:12:53.4]} 56. Kg2 {[%clk 0:13:23.9]} 56... f3+
{[%clk 0:12:54]} 57. Kxf3 {[%clk 0:13:27.7]} 57... Rxh4 {[%clk 0:12:58]} 58. b5
{[%clk 0:13:28.5]} 58... Rb4 {[%clk 0:13:00.7]} 59. Rb7+ {[%clk 0:13:29.7]}
59... Ke8 {[%clk 0:13:02.9]} 60. b6 {[%clk 0:13:31.5]} 60... Kd8 {[%clk
0:13:02.5]} 1/2-1/2

[Event "Live Chess"]
[Site "Chess.com"]
[Date "2023.09.16"]
[Round "-"]
[White "MateusLuan08"]
[Black "gu1c0rrea"]
[Result "1-0"]
[WhiteElo "1563"]
[BlackElo "810"]
[TimeControl "900+5"]
[EndTime "7:30:12 PDT"]
[Termination "MateusLuan08 venceu por desistência"]

1. e4 {[%clk 0:15:01]} 1... e5 {[%clk 0:15:04]} 2. Nf3 {[%clk 0:15:03.8]} 2...
Nc6 {[%clk 0:15:06.7]} 3. d4 {[%clk 0:15:06.8]} 3... Qf6 {[%clk 0:15:04.8]} 4.
Bg5 {[%clk 0:15:01.1]} 4... Qd6 {[%clk 0:15:02.3]} 5. d5 {[%clk 0:14:48.3]} 5...
f6 {[%clk 0:14:58.2]} 6. Be3 {[%clk 0:14:48.2]} 6... Nb4 {[%clk 0:14:57.7]} 7.
a3 {[%clk 0:14:39.1]} 7... Na6 {[%clk 0:14:49.2]} 8. Be2 {[%clk 0:14:35.1]} 8...
Nc5 {[%clk 0:14:48.6]} 9. O-O {[%clk 0:14:27.3]} 9... Nxe4 {[%clk 0:14:50]} 10.
Bd3 {[%clk 0:14:23.4]} 10... Nc5 {[%clk 0:14:43.2]} 11. Bc4 {[%clk 0:14:20.1]}
11... e4 {[%clk 0:14:29.1]} 12. Nd4 {[%clk 0:14:12.4]} 12... Qe5 {[%clk
0:14:27.1]} 13. Nc3 {[%clk 0:14:06]} 13... Bd6 {[%clk 0:14:27.1]} 14. g3 {[%clk
0:14:06.6]} 14... h5 {[%clk 0:14:20.5]} 15. Bf4 {[%clk 0:14:07.2]} 15... Qe7
{[%clk 0:14:18.7]} 16. Nf5 {[%clk 0:14:06.2]} 16... Qf7 {[%clk 0:14:14.2]} 17.
Bxd6 {[%clk 0:14:07.6]} 17... cxd6 {[%clk 0:14:17.5]} 18. Nxd6+ {[%clk
0:14:11.3]} 1-0

[Event "Live Chess"]
[Site "Chess.com"]
[Date "2023.09.16"]
[Round "-"]
[White "Samueeeseeel"]
[Black "dani_reitas"]
[Result "1-0"]
[WhiteElo "914"]
[BlackElo "1002"]
[TimeControl "900+5"]
[EndTime "7:30:41 PDT"]
[Termination "Samueeeseeel venceu por desistência"]

1. c4 {[%clk 0:15:02.1]} 1... e6 {[%clk 0:15:04.2]} 2. Nc3 {[%clk 0:15:04.4]}
2... d5 {[%clk 0:15:08.6]} 3. cxd5 {[%clk 0:15:07.2]} 3... exd5 {[%clk
0:15:12.5]} 4. g3 {[%clk 0:15:11.4]} 4... Nf6 {[%clk 0:15:16]} 5. Bg2 {[%clk
0:15:15.3]} 5... Be7 {[%clk 0:15:20]} 6. e3 {[%clk 0:15:18.7]} 6... c5 {[%clk
0:15:19]} 7. d4 {[%clk 0:15:20.5]} 7... O-O {[%clk 0:15:22]} 8. Nge2 {[%clk
0:15:23.8]} 8... Nc6 {[%clk 0:15:25]} 9. O-O {[%clk 0:15:26.2]} 9... Bf5 {[%clk
0:15:09.7]} 10. a3 {[%clk 0:15:20.6]} 10... Re8 {[%clk 0:14:46.4]} 11. Nf4
{[%clk 0:15:17.4]} 11... Ne4 {[%clk 0:14:37.6]} 12. Ncxd5 {[%clk 0:15:12.7]}
12... cxd4 {[%clk 0:14:16.1]} 13. Nxe7+ {[%clk 0:15:10.9]} 13... Rxe7 {[%clk
0:14:14.5]} 14. exd4 {[%clk 0:15:09.2]} 14... Nxd4 {[%clk 0:14:13.7]} 15. Re1
{[%clk 0:14:55.4]} 15... Qb6 {[%clk 0:13:47.7]} 16. b4 {[%clk 0:14:54.9]} 16...
Rae8 {[%clk 0:13:38.6]} 17. Bb2 {[%clk 0:14:54.1]} 17... h6 {[%clk 0:13:01.7]}
18. Qxd4 {[%clk 0:14:49.3]} 18... Qxd4 {[%clk 0:13:02.8]} 19. Bxd4 {[%clk
0:14:49.4]} 19... b6 {[%clk 0:12:41.5]} 20. Re3 {[%clk 0:14:28.7]} 20... Nd2
{[%clk 0:12:27.5]} 21. Rae1 {[%clk 0:14:27.6]} 21... Be4 {[%clk 0:12:17.2]} 22.
Bxe4 {[%clk 0:14:28.2]} 22... Nxe4 {[%clk 0:12:20.7]} 23. Nd5 {[%clk 0:14:30.1]}
23... Re6 {[%clk 0:12:17.7]} 24. Nc7 {[%clk 0:14:32.7]} 24... Nxf2 {[%clk
0:11:44.2]} 25. Nxe8 {[%clk 0:14:31.7]} 25... Rxe3 {[%clk 0:11:38.7]} 26. Re2
{[%clk 0:14:35.5]} 1-0

[Event "Live Chess"]
[Site "Chess.com"]
[Date "2023.09.16"]
[Round "-"]
[White "NavarroChess09"]
[Black "icarohm"]
[Result "0-1"]
[WhiteElo "1343"]
[BlackElo "1877"]
[TimeControl "900+5"]
[EndTime "7:30:50 PDT"]
[Termination "icarohm venceu por desistência"]

1. d4 {[%clk 0:15:02]} 1... d5 {[%clk 0:15:01.2]} 2. Nc3 {[%clk 0:15:04.4]} 2...
Bf5 {[%clk 0:15:03.4]} 3. Nf3 {[%clk 0:15:08.2]} 3... e6 {[%clk 0:15:06.1]} 4.
e3 {[%clk 0:15:12.6]} 4... c5 {[%clk 0:15:09.9]} 5. dxc5 {[%clk 0:15:14.5]} 5...
Bxc5 {[%clk 0:15:12.8]} 6. Bb5+ {[%clk 0:15:17.3]} 6... Nd7 {[%clk 0:15:15.7]}
7. O-O {[%clk 0:15:19.3]} 7... Nf6 {[%clk 0:15:18.3]} 8. Ne5 {[%clk 0:15:20.9]}
8... O-O {[%clk 0:15:21.4]} 9. Bxd7 {[%clk 0:15:21.5]} 9... Nxd7 {[%clk
0:15:24.1]} 10. Nxd7 {[%clk 0:15:23.7]} 10... Qxd7 {[%clk 0:15:28.2]} 11. Qf3
{[%clk 0:15:25.2]} 11... Rac8 {[%clk 0:15:24.8]} 12. e4 {[%clk 0:15:22.9]} 12...
dxe4 {[%clk 0:15:25.1]} 13. Nxe4 {[%clk 0:15:27.5]} 13... Bb6 {[%clk 0:15:28]}
14. Nc3 {[%clk 0:15:29.1]} 14... Bc7 {[%clk 0:15:19.8]} 15. Bf4 {[%clk 0:15:26]}
15... e5 {[%clk 0:15:18.9]} 16. Be3 {[%clk 0:15:26.4]} 16... b6 {[%clk 0:15:03]}
17. Qe2 {[%clk 0:15:21.6]} 17... Qe6 {[%clk 0:15:00.6]} 18. f4 {[%clk
0:15:10.5]} 18... exf4 {[%clk 0:14:51.6]} 19. Bxf4 {[%clk 0:15:09.8]} 19... Bxf4
{[%clk 0:14:41.8]} 20. Qxe6 {[%clk 0:15:10.1]} 20... Bxh2+ {[%clk 0:14:31.8]}
21. Kxh2 {[%clk 0:15:10.2]} 21... Bxe6 {[%clk 0:14:35.1]} 22. Rae1 {[%clk
0:15:09.4]} 22... Rfd8 {[%clk 0:14:33.5]} 23. Rd1 {[%clk 0:15:10.2]} 23... h6
{[%clk 0:14:36.5]} 24. Rxd8+ {[%clk 0:15:10.4]} 24... Rxd8 {[%clk 0:14:41.4]}
25. Rf2 {[%clk 0:15:11.6]} 25... Kh7 {[%clk 0:14:40.1]} 26. Nb5 {[%clk
0:15:13.6]} 26... a6 {[%clk 0:14:32]} 27. Nc7 {[%clk 0:15:15.3]} 27... a5 {[%clk
0:14:17.3]} 28. Nxe6 {[%clk 0:15:14.7]} 28... fxe6 {[%clk 0:14:21]} 29. Re2
{[%clk 0:15:09.3]} 29... Re8 {[%clk 0:14:22.3]} 30. c4 {[%clk 0:15:04.8]} 30...
Kg6 {[%clk 0:14:24.3]} 31. g4 {[%clk 0:15:04.6]} 31... Kg5 {[%clk 0:14:24.2]}
32. Kg3 {[%clk 0:15:07.3]} 32... e5 {[%clk 0:14:27.7]} 33. b3 {[%clk 0:15:09.6]}
33... g6 {[%clk 0:14:27.1]} 34. a4 {[%clk 0:15:10.1]} 34... h5 {[%clk 0:14:30]}
35. gxh5 {[%clk 0:15:12.8]} 35... gxh5 {[%clk 0:14:32.7]} 36. Re4 {[%clk
0:15:14.7]} 36... Re6 {[%clk 0:14:27.4]} 37. Kh3 {[%clk 0:15:03.6]} 37... Kf5
{[%clk 0:14:18.6]} 38. Rh4 {[%clk 0:15:05.4]} 38... Rh6 {[%clk 0:14:21.6]} 39.
Kg3 {[%clk 0:15:04.8]} 39... e4 {[%clk 0:14:24.2]} 40. Rf4+ {[%clk 0:15:07.6]}
40... Ke5 {[%clk 0:14:27.1]} 41. Rh4 {[%clk 0:14:57.7]} 41... Kd4 {[%clk
0:14:26.1]} 42. Kf4 {[%clk 0:15:00.6]} 42... Kd3 {[%clk 0:14:25.9]} 43. Ke5
{[%clk 0:15:04]} 43... e3 {[%clk 0:14:28.4]} 44. Rd4+ {[%clk 0:15:04.9]} 44...
Kc3 {[%clk 0:14:31.3]} 45. Re4 {[%clk 0:15:08.3]} 45... Kxb3 {[%clk 0:14:34.1]}
46. Rxe3+ {[%clk 0:15:12]} 46... Kxc4 {[%clk 0:14:37.9]} 47. Re4+ {[%clk
0:15:13.8]} 47... Kc5 {[%clk 0:14:41.7]} 48. Kf5 {[%clk 0:15:15.5]} 48... h4
{[%clk 0:14:43.8]} 49. Kg5 {[%clk 0:15:08.3]} 49... Rh8 {[%clk 0:14:43.9]} 50.
Re5+ {[%clk 0:15:11]} 50... Kc6 {[%clk 0:14:46.8]} 51. Re6+ {[%clk 0:15:13.9]}
51... Kb7 {[%clk 0:14:50.8]} 52. Re7+ {[%clk 0:15:15.9]} 52... Ka6 {[%clk
0:14:54.7]} 53. Re5 {[%clk 0:15:18.8]} 53... h3 {[%clk 0:14:57.7]} 54. Re2
{[%clk 0:15:20.1]} 54... h2 {[%clk 0:15:01.4]} 55. Rxh2 {[%clk 0:15:16.8]} 55...
Rxh2 {[%clk 0:15:06.3]} 56. Kf5 {[%clk 0:15:20]} 56... Ra2 {[%clk 0:15:09.3]}
0-1